bitfinex/quotes_BTCUSD_20250601
["timestamp","ask_amount","ask_price","bid_price","bid_amount"]
[1748802138161,5.36536132,104990.0,104980.0,0.01357174]
[1748802138406,5.36536132,104990.0,104980.0,0.00464827]
[1748802138615,5.36536132,104990.0,104980.0,0.01357174]
[1748802139050,5.45787254,104990.0,104980.0,0.01357174]
[1748802139267,5.36536132,104990.0,104980.0,0.00464827]
[1748802139957,5.36536132,104990.0,104980.0,0.00464837]
[1748802142617,5.36536132,104990.0,104980.0,0.0016]
[1748802143823,5.43108602,104990.0,104980.0,0.0016]
[1748802144027,5.52359724,104990.0,104980.0,0.0016]
[1748802144444,5.52159724,104990.0,104980.0,0.0016]
[1748802144648,5.52359724,104990.0,104980.0,0.0016]
[1748802144855,5.52559724,104990.0,104980.0,0.0016]
[1748802145272,5.43308602,104990.0,104980.0,0.0016]
[1748802148025,5.43300876,104990.0,104980.0,0.0016]
[1748802148718,5.36736132,104990.0,104980.0,0.0016]
[1748802149555,5.39597332,104990.0,104980.0,0.0016]
[1748802149828,5.41316878,104990.0,104980.0,0.0016]
[1748802150065,5.50568,104990.0,104980.0,0.0016]
[1748802151263,5.91728,104990.0,104980.0,0.0016]
[1748802152881,5.91528,104990.0,104980.0,0.0016]
[1748802153084,5.91328,104990.0,104980.0,0.0016]
[1748802153291,5.95628,104990.0,104980.0,0.0036]
[1748802156962,5.11157903,104970.0,104960.0,0.0016]
[1748802157160,5.65981418,104970.0,104960.0,0.0016]
[1748802158254,5.65995998,104970.0,104960.0,0.0016]
[1748802159129,5.65155998,104970.0,104960.0,0.0016]
[1748802159328,5.65955998,104970.0,104960.0,0.0016]
[1748802160110,5.67515998,104970.0,104960.0,0.0016]
[1748802161379,5.7676712,104970.0,104960.0,0.0016]
[1748802161783,5.67515998,104970.0,104960.0,0.0016]
[1748802163522,5.65955998,104970.0,104960.0,0.0016]
[1748802164370,5.67515998,104970.0,104960.0,0.0016]
[1748802166306,0.20962298,104950.0,104940.0,0.1415409]
[1748802166521,0.41757813,104950.0,104940.0,0.1415409]
[1748802168158,4.98057413,104950.0,104940.0,0.1114409]
[1748802168400,5.32057413,104950.0,104940.0,0.1114409]
[1748802168572,5.32157413,104950.0,104940.0,0.1114409]
[1748802168984,5.32057413,104950.0,104940.0,0.1114409]
[1748802169368,5.32157413,104950.0,104940.0,0.1114409]
[1748802169762,5.32157413,104950.0,104940.0,0.1267409]
[1748802170448,5.73325413,104950.0,104940.0,0.1267409]
[1748802170647,5.73325413,104950.0,104940.0,0.1418409]
[1748802170992,5.7518619,104950.0,104940.0,0.1418409]
[1748802171605,5.7518619,104950.0,104940.0,0.1114409]
[1748802174154,5.7518619,104950.0,104940.0,0.1418409]
[1748802175185,5.7518619,104950.0,104940.0,0.1267409]
[1748802175796,6.0575819,104950.0,104940.0,0.1267409]
[1748802176671,6.0575819,104950.0,104940.0,0.1114409]
[1748802180671,6.0570619,104950.0,104940.0,0.1114409]
[1748802180874,6.0570619,104950.0,104940.0,0.1438409]
[1748802181280,6.0570619,104950.0,104940.0,0.1114409]
[1748802181491,6.0570619,104950.0,104920.0,0.0016]
[1748802181492,0.0316,104930.0,104920.0,0.0016]
[1748802181693,5.35908225,104930.0,104920.0,0.0016]
[1748802182763,5.36708225,104930.0,104920.0,0.0016]
[1748802182965,5.36722797,104930.0,104920.0,0.0016]
[1748802183621,5.37522797,104930.0,104920.0,0.0016]
[1748802185034,5.37522797,104930.0,104900.0,0.0016]
[1748802185035,0.5497029,104910.0,104900.0,0.0016]
[1748802185239,0.66009805,104910.0,104900.0,0.0324]
[1748802185525,1.06313805,104910.0,104900.0,0.0324]
[1748802186462,1.06313805,104910.0,104880.0,0.0016]
[1748802186463,5.12627974,104890.0,104880.0,0.0016]
[1748802186682,5.62541404,104890.0,104880.0,0.0016]
[1748802187343,0.56432375,104870.0,104860.0,0.0016]
[1748802187568,5.31973405,104870.0,104860.0,0.0016]
[1748802187830,5.31987964,104870.0,104860.0,0.01050734]
[1748802188055,5.31987964,104870.0,104860.0,0.0016]
[1748802188487,5.32965961,104870.0,104860.0,0.0016]
[1748802188706,5.33065961,104870.0,104860.0,0.0016]
[1748802188918,5.74241961,104870.0,104860.0,0.0016]
[1748802189408,5.76025807,104870.0,104860.0,0.0016]
[1748802189649,5.82160207,104870.0,104860.0,0.0016]
[1748802189846,5.82160207,104870.0,104840.0,0.01736]
[1748802189847,5.12635975,104850.0,104840.0,0.01436]
[1748802190060,5.62557405,104850.0,104840.0,0.01436]
[1748802190231,5.95103405,104850.0,104840.0,0.01436]
[1748802190458,5.11684189,104840.0,104830.0,0.09070781]
[1748802190676,5.21269619,104840.0,104830.0,0.09070781]
[1748802190899,5.21269619,104840.0,104800.0,0.0539]
[1748802190900,0.20990298,104810.0,104800.0,0.0216]
[1748802191120,0.20990298,104810.0,104800.0,0.03045475]
[1748802191121,5.62561413,104810.0,104800.0,0.03045475]
[1748802191577,5.62561413,104810.0,104800.0,0.03045493]
[1748802191781,5.64422772,104810.0,104800.0,0.0216]
[1748802191989,0.77651172,104810.0,104800.0,0.03043656]
[1748802192210,0.77651172,104810.0,104800.0,0.02592186]
[1748802192211,1.08231172,104810.0,104800.0,0.02592186]
[1748802192638,1.08231172,104810.0,104800.0,0.02592153]
[1748802192639,1.08331172,104810.0,104800.0,0.02592153]
[1748802192858,1.08331172,104810.0,104800.0,0.0170853]
[1748802193098,0.77851172,104810.0,104800.0,0.0170853]
[1748802194530,5.34050772,104810.0,104800.0,0.0170853]
[1748802198111,5.64574772,104810.0,104800.0,0.0170853]
[1748802199536,5.24290772,104810.0,104800.0,0.0170853]
[1748802199767,5.64606772,104810.0,104800.0,0.0170853]
[1748802200480,5.64614772,104810.0,104800.0,0.0170853]
[1748802200948,5.68247331,104810.0,104800.0,0.0170853]
[1748802201196,0.0978543,104810.0,104800.0,0.26784984]
[1748802201429,0.03062203,104810.0,104800.0,0.26784984]
[1748802201651,0.56144351,104810.0,104800.0,0.26708727]
[1748802201876,0.54236237,104810.0,104800.0,0.25754563]
[1748802202123,0.20736233,104810.0,104800.0,0.0320853]
[1748802202330,0.20736233,104810.0,104800.0,0.0170853]
[1748802202331,0.30321663,104810.0,104800.0,0.0170853]
[1748802202747,0.40073663,104810.0,104800.0,0.0170853]
[1748802202941,0.74073663,104810.0,104800.0,0.0170853]
[1748802203150,0.75948471,104810.0,104800.0,0.0170853]
[1748802205907,0.75948471,104810.0,104800.0,0.02587945]
[1748802206099,0.75948471,104810.0,104800.0,0.0170853]
[1748802206100,5.41399193,104810.0,104800.0,0.0170853]
[1748802206730,5.32148071,104810.0,104800.0,0.0170853]
[1748802208009,5.63240071,104810.0,104800.0,0.0170853]
[1748802209937,5.63240071,104810.0,104800.0,0.02591878]
[1748802211008,5.63240071,104810.0,104800.0,0.02592024]
[1748802211421,5.63240071,104810.0,104800.0,0.02593635]
[1748802211630,5.22396071,104810.0,104800.0,0.02593634]
[1748802211839,5.63248071,104810.0,104800.0,0.02593634]
[1748802212051,5.63248071,104810.0,104800.0,0.02593763]
[1748802213077,5.63248071,104810.0,104800.0,0.02594945]
[1748802213415,5.63248071,104810.0,104800.0,0.0170853]
[1748802213824,5.63248071,104810.0,104800.0,0.02594956]
[1748802214028,5.63219446,104810.0,104800.0,0.02594956]
[1748802214878,5.63219446,104810.0,104800.0,0.0170853]
[1748802215085,5.63219446,104810.0,104800.0,0.02596664]
[1748802215285,5.63219446,104810.0,104800.0,0.0170853]
[1748802215690,5.63219446,104810.0,104800.0,0.02596705]
[1748802215928,5.63219446,104810.0,104800.0,0.02599046]
[1748802216762,5.63219446,104810.0,104800.0,0.02904437]
[1748802217995,5.63219446,104810.0,104800.0,0.02905659]
[1748802218203,5.32119446,104810.0,104800.0,0.02905659]
[1748802218622,5.32119446,104810.0,104800.0,0.02905626]
[1748802219027,5.32119446,104810.0,104800.0,0.02905671]
[1748802219691,5.32119446,104810.0,104800.0,0.02905718]
[1748802219894,5.22367446,104810.0,104800.0,0.03271878]
[1748802220101,5.32123446,104810.0,104800.0,0.03272755]
[1748802220727,5.32123446,104810.0,104800.0,0.03942895]
[1748802221127,5.32123446,104810.0,104800.0,0.03942915]
[1748802221867,5.32599446,104810.0,104800.0,0.03942885]
[1748802222779,5.32599446,104810.0,104800.0,0.03943493]
[1748802223522,0.76399846,104810.0,104800.0,0.05563684]
[1748802223723,0.76399846,104810.0,104800.0,0.07063684]
[1748802224180,0.76399846,104810.0,104800.0,0.07063735]
[1748802225069,0.76399846,104810.0,104800.0,0.05443735]
[1748802225294,0.76399846,104810.0,104800.0,0.0544375]
[1748802225516,0.76399846,104810.0,104800.0,0.04773865]
[1748802225735,0.76399846,104810.0,104800.0,0.07063779]
[1748802226427,0.76399846,104810.0,104800.0,0.07063803]
[1748802226641,0.76399846,104810.0,104800.0,0.0550067]
[1748802226850,0.76399846,104810.0,104800.0,0.06393889]
[1748802227076,0.76399846,104810.0,104800.0,0.07063899]
[1748802227291,0.66167846,104810.0,104800.0,0.05443899]
[1748802227525,0.76399846,104810.0,104800.0,0.05443893]
[1748802228213,0.76399846,104810.0,104800.0,0.04773955]
[1748802228437,0.76399846,104810.0,104800.0,0.070139]
[1748802229264,0.76399846,104810.0,104800.0,0.06877913]
[1748802229470,0.76399846,104810.0,104800.0,0.06511135]
[1748802229941,0.76399846,104810.0,104800.0,0.06511116]
[1748802230163,0.76399846,104810.0,104800.0,0.05841166]
[1748802230387,0.76399846,104810.0,104800.0,0.06511136]
[1748802230620,0.76399846,104810.0,104800.0,0.06511127]
[1748802231364,0.76399846,104810.0,104800.0,0.06205774]
[1748802231595,0.76399846,104810.0,104800.0,0.05841182]
[1748802231837,0.76399846,104810.0,104800.0,0.06511144]
[1748802232059,0.76399846,104810.0,104800.0,0.04941144]
[1748802232297,0.76399846,104810.0,104800.0,0.04941527]
[1748802232748,0.76399846,104810.0,104800.0,0.04941848]
[1748802233845,0.76399846,104810.0,104800.0,0.04048163]
[1748802234066,0.76399846,104810.0,104800.0,0.04942095]
[1748802234287,0.76399846,104810.0,104800.0,0.04942281]
[1748802235699,0.76399846,104810.0,104800.0,0.0307253]
[1748802235928,0.76399846,104810.0,104800.0,0.04942909]
[1748802236398,5.32599446,104810.0,104800.0,0.03442909]
[1748802236836,5.32599446,104810.0,104800.0,0.03442974]
[1748802237576,0.76399846,104810.0,104800.0,0.03442974]
[1748802238021,0.76399846,104810.0,104800.0,0.03442979]
[1748802238228,0.76399846,104810.0,104800.0,0.03442986]
[1748802238435,0.76399846,104810.0,104800.0,0.02772235]
[1748802238862,0.76399846,104810.0,104800.0,0.018779]
[1748802239102,0.11631613,104810.0,104800.0,0.2702843]
[1748802239330,0.23990515,104810.0,104800.0,0.27088265]
[1748802239556,0.23990588,104810.0,104800.0,0.27088265]
[1748802239782,0.3607947,104810.0,104800.0,0.28041909]
[1748802240061,0.01125418,104810.0,104800.0,0.30071534]
[1748802240302,0.03033514,104810.0,104800.0,0.61255496]
[1748802240537,0.00171375,104810.0,104800.0,1.04799637]
[1748802240759,0.00171375,104810.0,104800.0,1.13896378]
[1748802240971,0.01907531,104840.0,104830.0,0.25120174]
[1748802241179,0.21936033,104850.0,104840.0,0.24163676]
[1748802241398,0.64567766,104850.0,104840.0,0.23515198]
[1748802241624,0.25273535,104850.0,104840.0,0.24184574]
[1748802241830,0.00442959,104850.0,104840.0,0.27045903]
[1748802242045,0.35396684,104850.0,104840.0,0.26092108]
[1748802242253,0.54982327,104850.0,104840.0,0.2513895]
[1748802242463,0.55082327,104850.0,104840.0,0.26091554]
[1748802242670,0.2109688,104850.0,104840.0,0.26091554]
[1748802242890,0.5509688,104850.0,104840.0,0.27045352]
[1748802243101,0.5509688,104850.0,104840.0,0.2799914]
[1748802243312,0.02021939,104850.0,104840.0,0.59142409]
[1748802243721,0.02021939,104850.0,104840.0,0.59142379]
[1748802243931,0.37929398,104850.0,104840.0,0.58474892]
[1748802244113,0.37075655,104850.0,104840.0,0.59442373]
[1748802244348,0.00214553,104850.0,104840.0,0.59442373]
[1748802244564,0.01168214,104850.0,104840.0,0.5944229]
[1748802244775,0.00214553,104850.0,104840.0,0.5944229]
[1748802244979,0.01168214,104850.0,104840.0,0.5944229]
[1748802245184,0.00114553,104850.0,104840.0,0.5944229]
[1748802245444,0.00114553,104850.0,104840.0,0.59441522]
[1748802245650,0.00114553,104850.0,104840.0,0.59741522]
[1748802245651,0.00214553,104850.0,104840.0,0.59741522]
[1748802245865,0.00114553,104850.0,104840.0,0.59441522]
[1748802246082,0.01168223,104850.0,104840.0,0.59741477]
[1748802246290,0.02121911,104850.0,104840.0,0.59074892]
[1748802246531,0.02121911,104850.0,104840.0,0.59740926]
[1748802246743,0.01168223,104850.0,104840.0,0.59740926]
[1748802247594,0.01168223,104850.0,104840.0,0.59740384]
[1748802248014,0.02121902,104850.0,104840.0,0.59740384]
[1748802248218,0.02121902,104850.0,104840.0,0.59074892]
[1748802248642,0.01168223,104850.0,104840.0,0.59074892]
[1748802249079,0.03075645,104850.0,104840.0,0.27930892]
[1748802249296,0.03075645,104850.0,104840.0,0.59006892]
[1748802249507,0.03075645,104850.0,104840.0,0.58701685]
[1748802249725,0.03075645,104850.0,104840.0,0.27625685]
[1748802249935,0.03075645,104850.0,104840.0,0.58689685]
[1748802250149,0.0212192,104850.0,104840.0,0.58689685]
[1748802250403,0.03075636,104850.0,104840.0,0.58689685]
[1748802251205,0.0212192,104850.0,104840.0,0.58689685]
[1748802251438,0.03075636,104850.0,104840.0,0.58689685]
[1748802253767,0.02121911,104850.0,104840.0,0.58689685]
[1748802253985,0.03075618,104850.0,104840.0,0.58689685]
[1748802254234,0.04029343,104850.0,104840.0,0.58653694]
[1748802254461,0.04029343,104850.0,104840.0,0.58653639]
[1748802255962,0.03075618,104850.0,104840.0,0.58653639]
[1748802256189,0.04029343,104850.0,104840.0,0.58653639]
[1748802256438,0.00214553,104850.0,104840.0,0.58653639]
[1748802256680,0.02121902,104850.0,104840.0,0.58653639]
[1748802256910,0.78743673,104850.0,104840.0,0.006]
[1748802257946,0.23394286,104830.0,104820.0,0.00954016]
[1748802258150,0.22440416,104830.0,104820.0,0.00954016]
[1748802258356,0.22440416,104830.0,104820.0,0.20034344]
[1748802258764,0.22440416,104830.0,104820.0,0.00954016]
[1748802259091,0.22540416,104830.0,104820.0,0.01454016]
[1748802259491,0.22540416,104830.0,104820.0,0.005]
[1748802259692,0.22540416,104830.0,104820.0,0.23634344]
[1748802259918,0.22640416,104830.0,104820.0,0.24134344]
[1748802260118,0.22640416,104830.0,104820.0,0.36054016]
[1748802260538,0.21686518,104830.0,104820.0,0.351]
[1748802260704,0.21686518,104830.0,104820.0,0.36078016]
[1748802260974,0.21186331,104830.0,104820.0,0.57066294]
[1748802261743,0.21186331,104830.0,104820.0,0.58020246]
[1748802261744,0.002,104830.0,104820.0,0.58020246]
[1748802261982,0.002,104830.0,104820.0,1.01869621]
[1748802262187,0.002,104830.0,104820.0,1.22136114]
[1748802262388,0.002,104830.0,104820.0,1.22136071]
[1748802262736,0.002,104830.0,104820.0,1.66044231]
[1748802262951,0.002,104830.0,104820.0,1.2250009]
[1748802263344,0.002,104830.0,104820.0,1.66044356]
[1748802263571,0.002,104830.0,104820.0,1.22989535]
[1748802263780,0.002,104830.0,104820.0,1.22989866]
[1748802264378,0.002,104830.0,104820.0,1.2299009]
[1748802264595,0.002,104830.0,104820.0,1.22625686]
[1748802264838,0.002,104830.0,104820.0,0.78416176]
[1748802265050,0.002,104830.0,104820.0,1.22625907]
[1748802265234,0.002,104830.0,104820.0,0.79081766]
[1748802265691,0.002,104830.0,104820.0,0.79082046]
[1748802265902,0.002,104830.0,104820.0,0.78416176]
[1748802266102,0.002,104830.0,104820.0,0.79082046]
[1748802266528,0.002,104830.0,104820.0,0.79082472]
[1748802267370,0.002,104830.0,104820.0,0.79082534]
[1748802267576,0.002,104830.0,104820.0,1.22254928]
[1748802267985,0.002,104830.0,104820.0,1.21950229]
[1748802268198,0.002,104830.0,104820.0,1.22255409]
[1748802268403,0.002,104830.0,104820.0,1.22255467]
[1748802268609,0.002,104830.0,104820.0,1.2158857]
[1748802268816,0.002,104830.0,104820.0,1.22256131]
[1748802269437,0.002,104830.0,104820.0,1.2158857]
[1748802269644,0.002,104830.0,104820.0,1.22256661]
[1748802269852,0.002,104830.0,104820.0,0.78594947]
[1748802270285,0.002,104830.0,104820.0,0.78594946]
[1748802270497,0.002,104830.0,104820.0,0.78594989]
[1748802271124,0.002,104830.0,104820.0,0.78595247]
[1748802271332,0.002,104830.0,104820.0,0.77926856]
[1748802271537,0.002,104830.0,104820.0,0.78595289]
[1748802271738,0.002,104830.0,104820.0,0.7859529]
[1748802272354,0.002,104830.0,104820.0,0.7829011]
[1748802272556,0.002,104830.0,104820.0,0.78595293]
[1748802272756,0.002,104830.0,104820.0,0.78595302]
[1748802272958,0.002,104830.0,104820.0,0.78595301]
[1748802273963,0.002,104830.0,104820.0,0.7859531]
[1748802274165,0.002,104830.0,104820.0,0.77926859]
[1748802274494,0.002,104830.0,104820.0,0.7859531]
[1748802275257,0.002,104830.0,104820.0,0.7851531]
[1748802275440,0.002,104830.0,104820.0,0.77846859]
[1748802275644,0.002,104830.0,104820.0,0.78515376]
[1748802275849,0.002,104830.0,104820.0,0.77846859]
[1748802276053,0.002,104830.0,104820.0,0.78515376]
[1748802276897,0.002,104830.0,104820.0,0.78515377]
[1748802277326,0.002,104830.0,104820.0,0.78515427]
[1748802277939,0.002,104830.0,104820.0,0.78463427]
[1748802278561,0.002,104830.0,104820.0,0.78463455]
[1748802279025,0.002,104830.0,104820.0,0.47567455]
[1748802279249,0.002,104830.0,104820.0,0.78443455]
[1748802279395,0.002,104830.0,104820.0,0.78443485]
[1748802279571,0.002,104830.0,104820.0,0.7777486]
[1748802279783,0.002,104830.0,104820.0,0.78443485]
[1748802280387,0.002,104830.0,104820.0,0.78443505]
[1748802280590,0.002,104830.0,104820.0,0.37555505]
[1748802280809,0.01153843,104830.0,104820.0,0.47567529]
[1748802281012,0.002,104830.0,104820.0,0.78431542]
[1748802281213,0.002,104830.0,104820.0,0.78431546]
[1748802282497,0.002,104830.0,104820.0,0.37555626]
[1748802282698,0.002,104830.0,104820.0,0.78295626]
[1748802282904,0.002,104830.0,104820.0,0.78295624]
[1748802283344,0.002,104830.0,104820.0,0.78295651]
[1748802283550,0.002,104830.0,104820.0,0.78783991]
[1748802284023,0.002,104830.0,104820.0,0.78295653]
[1748802284267,0.002,104830.0,104820.0,0.78783988]
[1748802284770,0.002,104830.0,104820.0,0.78295653]
[1748802285164,0.002,104830.0,104820.0,0.7762688]
[1748802285371,0.002,104830.0,104820.0,0.78295701]
[1748802285578,0.002,104830.0,104820.0,0.78295699]
[1748802285973,0.002,104830.0,104820.0,0.78295692]
[1748802286137,0.002,104830.0,104820.0,0.78295691]
[1748802286338,0.002,104830.0,104820.0,0.78295722]
[1748802287389,0.002,104830.0,104820.0,0.78295907]
[1748802288205,0.002,104830.0,104820.0,1.21898984]
[1748802288420,0.002,104830.0,104820.0,1.21899214]
[1748802288650,0.002,104830.0,104820.0,1.21899204]
[1748802289311,0.002,104830.0,104820.0,1.21899527]
[1748802289751,0.002,104830.0,104820.0,1.21899528]
[1748802289943,0.002,104830.0,104820.0,1.21899518]
[1748802291345,0.002,104830.0,104820.0,1.21899873]
[1748802291587,0.002,104830.0,104820.0,1.21899883]
[1748802292249,0.002,104830.0,104820.0,1.21900049]
[1748802292662,0.002,104830.0,104820.0,1.21900048]
[1748802292867,0.002,104830.0,104820.0,1.21229945]
[1748802293070,0.002,104830.0,104820.0,1.21900048]
[1748802293794,0.002,104830.0,104820.0,1.21594856]
[1748802294062,0.002,104830.0,104820.0,1.21900057]
[1748802294693,0.002,104830.0,104820.0,1.21900061]
[1748802295306,0.0006,104830.0,104820.0,1.21900061]
[1748802295506,0.0006,104830.0,104820.0,1.21900069]
[1748802296320,0.0006,104830.0,104820.0,1.21900073]
[1748802296526,0.0006,104830.0,104820.0,1.21229947]
[1748802296694,0.0006,104830.0,104820.0,1.21900078]
[1748802297455,0.0006,104830.0,104820.0,1.22854425]
[1748802298190,0.0006,104830.0,104820.0,1.22184294]
[1748802298403,0.0006,104830.0,104820.0,1.22854442]
[1748802299469,0.0006,104830.0,104820.0,1.22854463]
[1748802300118,0.0006,104830.0,104820.0,1.22854464]
[1748802300736,0.0006,104830.0,104820.0,1.52114464]
[1748802300913,0.0006,104830.0,104820.0,1.52114468]
[1748802301609,0.0006,104830.0,104820.0,1.52114474]
[1748802302871,0.0006,104830.0,104820.0,1.08447413]
[1748802303522,0.0006,104830.0,104820.0,1.08447424]
[1748802304150,0.0006,104830.0,104820.0,1.52114501]
[1748802304364,0.00014553,104850.0,104840.0,0.21938081]
[1748802304572,0.00014553,104850.0,104840.0,0.53312617]
[1748802304784,0.00014553,104850.0,104840.0,0.53982799]
[1748802305003,0.00014553,104850.0,104840.0,1.20345167]
[1748802305219,0.00014553,104850.0,104840.0,1.19855825]
[1748802305648,0.00214553,104850.0,104840.0,1.19585782]
[1748802305908,0.00114553,104850.0,104840.0,1.20055388]
[1748802306121,0.00014553,104850.0,104840.0,1.19855383]
[1748802306335,0.00114553,104850.0,104840.0,1.22240942]
[1748802306548,0.00114553,104850.0,104840.0,1.22340942]
[1748802306755,0.00114553,104850.0,104840.0,1.22340273]
[1748802306972,0.00114553,104850.0,104840.0,1.22340272]
[1748802307215,0.00114553,104850.0,104840.0,1.19885782]
[1748802307452,0.00114553,104850.0,104840.0,1.22339948]
[1748802307659,0.00114553,104850.0,104840.0,1.19885782]
[1748802307869,0.00214553,104850.0,104840.0,0.92259284]
[1748802308091,0.00214553,104850.0,104840.0,1.22891294]
[1748802308300,0.00214553,104850.0,104840.0,0.79224217]
[1748802308499,0.00214553,104850.0,104840.0,1.22891294]
[1748802309139,0.00214553,104850.0,104840.0,1.22890933]
[1748802309347,0.00214553,104850.0,104840.0,1.22890857]
[1748802309549,0.00214553,104850.0,104840.0,1.23379316]
[1748802309770,0.00214553,104850.0,104840.0,1.05762239]
[1748802309979,0.00214553,104850.0,104840.0,1.05761782]
[1748802310200,0.00214553,104850.0,104840.0,0.65229728]
[1748802310411,0.00214553,104850.0,104840.0,0.66601702]
[1748802310412,0.03414553,104850.0,104840.0,0.66601702]
[1748802310623,0.04368223,104850.0,104840.0,0.35969692]
[1748802310828,0.03414553,104850.0,104840.0,0.65956832]
[1748802311043,0.03414553,104850.0,104840.0,0.666257]
[1748802311250,0.03414553,104850.0,104840.0,0.66625702]
[1748802311468,0.03414553,104850.0,104840.0,0.66625596]
[1748802312317,0.03414553,104850.0,104840.0,0.66625547]
[1748802312735,0.03414553,104850.0,104840.0,0.66625545]
[1748802314229,0.03414553,104850.0,104840.0,0.35969483]
[1748802314463,0.03414553,104850.0,104840.0,0.66296332]
[1748802314676,0.03414553,104850.0,104840.0,0.6660149]
[1748802314944,0.03414553,104850.0,104840.0,0.66601508]
[1748802315364,0.03414553,104850.0,104840.0,0.65932682]
[1748802315580,0.03414553,104850.0,104840.0,0.66601504]
[1748802316234,0.03414553,104850.0,104840.0,0.66601525]
[1748802316444,0.03414553,104850.0,104840.0,0.66601533]
[1748802317067,0.01864553,104850.0,104840.0,0.66601533]
[1748802317295,0.01864553,104850.0,104840.0,0.66601574]
[1748802317923,0.01864553,104850.0,104840.0,0.65932735]
[1748802318131,0.01864553,104850.0,104840.0,0.66601606]
[1748802318318,0.01864553,104850.0,104840.0,0.66601661]
[1748802318649,0.01864553,104850.0,104840.0,0.64149124]
[1748802318871,0.01864553,104850.0,104840.0,0.6660171]
[1748802319081,0.03404553,104850.0,104840.0,0.2638428]
[1748802319292,0.03404553,104850.0,104840.0,0.57322576]
[1748802319500,0.03404553,104850.0,104840.0,0.57322649]
[1748802319700,0.03404553,104850.0,104840.0,0.55538922]
[1748802319879,0.03404553,104850.0,104840.0,0.57322736]
[1748802320128,0.03404553,104850.0,104840.0,0.57322737]
[1748802320353,0.03404553,104850.0,104840.0,0.56653804]
[1748802320567,0.03404553,104850.0,104840.0,0.57322791]
[1748802321111,0.03404553,104850.0,104840.0,0.56653936]
[1748802321324,0.03404553,104850.0,104840.0,0.55539001]
[1748802321546,0.03404553,104850.0,104840.0,0.57322942]
[1748802322347,0.03404553,104850.0,104840.0,0.57323105]
[1748802323197,0.03404553,104850.0,104840.0,0.5732313]
[1748802323400,0.03404553,104850.0,104840.0,0.57323179]
[1748802323601,0.03404553,104850.0,104840.0,0.56956822]
[1748802323718,0.03404553,104850.0,104840.0,0.5628778]
[1748802323920,0.03404553,104850.0,104840.0,0.56957067]
[1748802324377,0.03404553,104850.0,104840.0,0.56957182]
[1748802324780,0.03404553,104850.0,104840.0,0.56957276]
[1748802325724,0.03404553,104850.0,104840.0,0.56957445]
[1748802325929,0.03404553,104850.0,104840.0,0.56288295]
[1748802326155,0.03404553,104850.0,104840.0,0.56957505]
[1748802326357,0.03404553,104850.0,104840.0,0.56957556]
[1748802326562,0.03404553,104850.0,104840.0,0.5695769]
[1748802327481,0.03404553,104850.0,104840.0,0.56957917]
[1748802327902,0.03404553,104850.0,104840.0,0.56957913]
[1748802328109,0.03404553,104850.0,104840.0,0.56288652]
[1748802328325,0.03404553,104850.0,104840.0,0.56958379]
[1748802328824,0.01864553,104850.0,104840.0,0.56958398]
[1748802329069,0.00214553,104850.0,104840.0,0.56958398]
[1748802329304,0.00214553,104850.0,104840.0,0.56958838]
[1748802329560,0.00214553,104850.0,104840.0,0.56958836]
[1748802329762,0.00214553,104850.0,104840.0,0.56289261]
[1748802329998,0.00214553,104850.0,104840.0,0.56958898]
[1748802330825,0.00214553,104850.0,104840.0,0.56958899]
[1748802331754,0.01774553,104850.0,104840.0,0.56958899]
[1748802331994,0.01774553,104850.0,104840.0,0.56958915]
[1748802332205,0.01774553,104850.0,104840.0,0.56958914]
[1748802333218,0.01774553,104850.0,104840.0,0.56959058]
[1748802333370,0.01774553,104850.0,104840.0,0.56959486]
[1748802334611,0.01774553,104850.0,104840.0,0.56960179]
[1748802335642,0.01774553,104850.0,104840.0,0.5696025]
[1748802336298,0.01774553,104850.0,104840.0,0.56960446]
[1748802336299,0.00214553,104850.0,104840.0,0.56960446]
[1748802336706,0.00214553,104850.0,104840.0,0.56960607]
[1748802337330,0.00214553,104850.0,104840.0,0.56960678]
[1748802337799,0.00214553,104850.0,104840.0,0.56960896]
[1748802338014,0.00214553,104850.0,104840.0,0.55173805]
[1748802338224,0.00214553,104850.0,104840.0,0.5629084]
[1748802338439,0.00214553,104850.0,104840.0,0.5665585]
[1748802338649,0.01774553,104850.0,104840.0,0.56961006]
[1748802338860,0.01774553,104850.0,104840.0,0.56472514]
[1748802339047,0.01774553,104850.0,104840.0,0.56962164]
[1748802339297,0.01774553,104850.0,104840.0,0.56962236]
[1748802339507,0.01774553,104850.0,104840.0,0.54685612]
[1748802339720,0.01774553,104850.0,104840.0,0.5468561]
[1748802339929,0.01774553,104850.0,104840.0,0.55802905]
[1748802340178,0.01774553,104850.0,104840.0,0.5647328]
[1748802340806,0.01774553,104850.0,104840.0,0.56473327]
[1748802341024,0.00214553,104850.0,104840.0,0.56473345]
[1748802342332,0.00214553,104850.0,104840.0,0.56473344]
[1748802342539,0.00214553,104850.0,104840.0,0.54015237]
[1748802342745,0.00214553,104850.0,104840.0,0.56473273]
[1748802342966,0.00214553,104850.0,104840.0,0.56473268]
[1748802343177,0.00214553,104850.0,104840.0,0.55802895]
[1748802343387,0.00214553,104850.0,104840.0,0.56473267]
[1748802343588,0.00214553,104850.0,104840.0,0.54685609]
[1748802343801,0.00214553,104850.0,104840.0,0.56473272]
[1748802344040,0.00214553,104850.0,104840.0,0.56473273]
[1748802344260,0.00214553,104850.0,104840.0,0.56473271]
[1748802344469,0.00214553,104850.0,104840.0,0.56473275]
[1748802344673,0.00214553,104850.0,104840.0,0.56473273]
[1748802344879,0.00214553,104850.0,104840.0,0.56473231]
[1748802345092,0.00214553,104850.0,104840.0,0.56473215]
[1748802345343,0.00214553,104850.0,104840.0,0.56168058]
[1748802345571,0.01754553,104850.0,104840.0,0.56473209]
[1748802345778,0.01754553,104850.0,104840.0,0.56473205]
[1748802346194,0.01754553,104850.0,104840.0,0.54015232]
[1748802346413,0.01754553,104850.0,104840.0,0.55802851]
[1748802346658,0.01754553,104850.0,104840.0,0.56473209]
[1748802346870,0.01754553,104850.0,104840.0,0.56473205]
[1748802347276,0.01754553,104850.0,104840.0,0.56473187]
[1748802347937,0.01754553,104850.0,104840.0,0.5647316]
[1748802348555,0.01754553,104850.0,104840.0,0.56473157]
[1748802348692,0.01754553,104850.0,104840.0,0.56473152]
[1748802349241,0.01754553,104850.0,104840.0,0.56473128]
[1748802349869,0.01754553,104850.0,104840.0,0.5468556]
[1748802350011,0.01754553,104850.0,104840.0,0.564731]
[1748802350211,0.01754553,104850.0,104840.0,0.56473101]
[1748802350413,0.01754553,104850.0,104840.0,0.56473106]
[1748802350825,0.01754553,104850.0,104840.0,0.54015233]
[1748802351026,0.01754553,104850.0,104840.0,0.56473098]
[1748802351213,0.00214553,104850.0,104840.0,0.56473098]
[1748802351627,0.01784553,104850.0,104840.0,0.56157098]
[1748802351870,0.01784553,104850.0,104840.0,0.56157101]